[Event "Titled Tuesday Blitz February 07 Early 2023"]
[White "Von Buelow, Georg"]
[Black "Kornyukov, Alexey"]
[WhiteFideId "4620658"]
[BlackFideId "4150457"]
[WhiteElo "2345"]
[BlackElo "2452"]
[Result "1-0"]
[Round "11"]
[TimeControl "180+2"]
[Date "2023.02.07"]
[WhiteClock "0:01:05"]
[BlackClock "0:00:59"]

1. e4 {[%clk 0:02:55]}  c5 {[%clk 0:02:59]} 2. Nf3 {[%clk 0:02:55]}  Nc6 {[%clk 0:02:59]} 3. d4 {[%clk 0:02:55]}  cxd4 {[%clk 0:02:58]} 4. Nxd4 {[%clk 0:02:56]}  e5 {[%clk 0:02:59]} 5. Nb5 {[%clk 0:02:56]}  a6 {[%clk 0:02:57]} 6. Nd6+ {[%clk 0:02:56]}  Bxd6 {[%clk 0:02:56]} 7. Qxd6 {[%clk 0:02:57]}  Qe7 {[%clk 0:02:55]} 8. Qxe7+ {[%clk 0:02:57]}  Ngxe7 {[%clk 0:02:54]} 9. Nc3 {[%clk 0:02:58]}  d5 {[%clk 0:02:53]} 10. exd5 {[%clk 0:02:51]}  Nb4 {[%clk 0:02:52]} 11. Bd3 {[%clk 0:02:46]}  Nxd3+ {[%clk 0:02:49]} 12. cxd3 {[%clk 0:02:46]}  Bf5 {[%clk 0:02:48]} 13. Ke2 {[%clk 0:02:46]}  O-O-O {[%clk 0:02:27]} 14. Be3 {[%clk 0:02:44]}  Nxd5 {[%clk 0:02:25]} 15. Nxd5 {[%clk 0:02:44]}  Rxd5 {[%clk 0:02:17]} 16. Rac1+ {[%clk 0:02:44]}  Kb8 {[%clk 0:02:10]} 17. Rhd1 {[%clk 0:02:40]}  Rhd8 {[%clk 0:02:07]} 18. Rc3 {[%clk 0:02:38]}  e4 {[%clk 0:02:01]} 19. d4 {[%clk 0:02:37]}  Bg4+ {[%clk 0:02:00]} 20. f3 {[%clk 0:02:37]}  exf3+ {[%clk 0:02:00]} 21. gxf3 {[%clk 0:02:38]}  Bh5 {[%clk 0:01:59]} 22. Bf4+ {[%clk 0:02:17]}  Ka8 {[%clk 0:01:54]} 23. Ke3 {[%clk 0:02:14]}  Re8+ {[%clk 0:01:51]} 24. Kf2 {[%clk 0:02:13]}  Rf5 {[%clk 0:01:51]} 25. Bg3 {[%clk 0:01:56]}  Rd8 {[%clk 0:01:45]} 26. Rdd3 {[%clk 0:01:49]}  Rf6 {[%clk 0:01:44]} 27. d5 {[%clk 0:01:47]}  Rb6 {[%clk 0:01:40]} 28. b3 {[%clk 0:01:46]}  Bg6 {[%clk 0:01:32]} 29. Bc7 {[%clk 0:01:36]}  Bxd3 {[%clk 0:01:26]} 30. Bxd8 {[%clk 0:01:35]}  Rd6 {[%clk 0:01:24]} 31. Rxd3 {[%clk 0:01:32]}  Rxd8 {[%clk 0:01:24]} 32. Ke3 {[%clk 0:01:33]}  Rd6 {[%clk 0:01:21]} 33. Kd4 {[%clk 0:01:30]}  b6 {[%clk 0:01:21]} 34. Ke5 {[%clk 0:01:27]}  Rd7 {[%clk 0:01:20]} 35. d6 {[%clk 0:01:26]}  Kb7 {[%clk 0:01:20]} 36. Kd5 {[%clk 0:01:26]}  g5 {[%clk 0:01:16]} 37. Re3 {[%clk 0:01:25]}  b5 {[%clk 0:01:13]} 38. b4 {[%clk 0:01:20]}  Kc8 {[%clk 0:01:05]} 39. Kc6 {[%clk 0:01:16]}  Rd8 {[%clk 0:01:04]} 40. Re7 {[%clk 0:01:14]}  Rf8 {[%clk 0:01:03]} 41. Ra7 {[%clk 0:01:11]}  Kb8 {[%clk 0:01:01]} 42. Rxa6 {[%clk 0:01:09]}  f5 {[%clk 0:01:00]} 43. Rb6+ {[%clk 0:01:06]}  Kc8 {[%clk 0:01:00]} 44. d7+ {[%clk 0:01:05]}  Kd8 {[%clk 0:00:58]} 45. Rb8+ {[%clk 0:01:05]}  Ke7 {[%clk 0:00:59]} 46. Rxf8 {[%clk 0:01:05]} 1-0


[Site "https://www.chess.com"]

[Event "Titled Tuesday Blitz February 07 Early 2023"]
[White "Zaichenko, Daria"]
[Black "Shubenkova, Veronika"]
[WhiteFideId "4197453"]
[BlackFideId "44124040"]
[WhiteElo "2104"]
[BlackElo "1960"]
[Result "1-0"]
[Round "11"]
[TimeControl "180+2"]
[Date "2023.02.07"]
[WhiteClock "0:00:18"]
[BlackClock "0:00:24"]

1. e4 {[%clk 0:02:58]}  e6 {[%clk 0:02:56]} 2. d4 {[%clk 0:02:56]}  d5 {[%clk 0:02:56]} 3. Bd3 {[%clk 0:02:57]}  dxe4 {[%clk 0:02:55]} 4. Bxe4 {[%clk 0:02:57]}  Nf6 {[%clk 0:02:56]} 5. Bf3 {[%clk 0:02:57]}  c6 {[%clk 0:02:57]} 6. c4 {[%clk 0:02:54]}  Be7 {[%clk 0:02:56]} 7. Nc3 {[%clk 0:02:54]}  O-O {[%clk 0:02:55]} 8. Nge2 {[%clk 0:02:54]}  b6 {[%clk 0:02:54]} 9. O-O {[%clk 0:02:54]}  Bb7 {[%clk 0:02:54]} 10. Qc2 {[%clk 0:02:47]}  Nbd7 {[%clk 0:02:54]} 11. Bf4 {[%clk 0:02:45]}  Rc8 {[%clk 0:02:52]} 12. Rad1 {[%clk 0:02:44]}  a6 {[%clk 0:02:52]} 13. Ng3 {[%clk 0:02:33]}  Re8 {[%clk 0:02:51]} 14. Nge4 {[%clk 0:02:31]}  Nf8 {[%clk 0:02:50]} 15. Qe2 {[%clk 0:02:23]}  Ng6 {[%clk 0:02:50]} 16. Bg3 {[%clk 0:02:23]}  Nxe4 {[%clk 0:02:49]} 17. Nxe4 {[%clk 0:02:23]}  b5 {[%clk 0:02:46]} 18. Nc3 {[%clk 0:02:13]}  b4 {[%clk 0:02:43]} 19. Na4 {[%clk 0:02:09]}  Qa5 {[%clk 0:02:40]} 20. b3 {[%clk 0:02:08]}  Red8 {[%clk 0:02:32]} 21. c5 {[%clk 0:02:04]}  Bf6 {[%clk 0:02:20]} 22. Nb6 {[%clk 0:01:48]}  Rxd4 {[%clk 0:02:09]} 23. Nxc8 {[%clk 0:01:42]}  Bxc8 {[%clk 0:02:08]} 24. Bxc6 {[%clk 0:01:32]}  Qxc5 {[%clk 0:02:06]} 25. Rxd4 {[%clk 0:01:31]}  Bxd4 {[%clk 0:02:05]} 26. Bf3 {[%clk 0:01:22]}  e5 {[%clk 0:01:59]} 27. Qe4 {[%clk 0:01:19]}  h6 {[%clk 0:01:51]} 28. Be2 {[%clk 0:01:09]}  f5 {[%clk 0:01:46]} 29. Qa8 {[%clk 0:01:04]}  Kh7 {[%clk 0:01:40]} 30. h3 {[%clk 0:00:49]}  Qc3 {[%clk 0:01:31]} 31. Qf3 {[%clk 0:00:43]}  Qc5 {[%clk 0:01:23]} 32. Bc4 {[%clk 0:00:38]}  e4 {[%clk 0:01:19]} 33. Qh5 {[%clk 0:00:34]}  a5 {[%clk 0:00:57]} 34. Bf7 {[%clk 0:00:32]}  Nh8 {[%clk 0:00:53]} 35. Bf4 {[%clk 0:00:32]}  Ba6 {[%clk 0:00:50]} 36. Rc1 {[%clk 0:00:26]}  Bxf2+ {[%clk 0:00:46]} 37. Kh2 {[%clk 0:00:26]}  Qd4 {[%clk 0:00:24]} 38. Rc6 {[%clk 0:00:18]} 1-0


[Site "https://www.chess.com"]

[Event "Titled Tuesday Blitz February 07 Early 2023"]
[White "Kostiukov, Alexandr"]
[Black "Vaglio Munoz, Jaime"]
[WhiteFideId "14108100"]
[BlackFideId "6500145"]
[WhiteElo "2271"]
[BlackElo "2174"]
[Result "0-1"]
[Round "11"]
[TimeControl "180+2"]
[Date "2023.02.07"]
[WhiteClock "0:00:09"]
[BlackClock "0:00:12"]

1. e4 {[%clk 0:02:55]}  e6 {[%clk 0:02:58]} 2. g3 {[%clk 0:02:51]}  d5 {[%clk 0:02:57]} 3. d3 {[%clk 0:02:50]}  dxe4 {[%clk 0:02:57]} 4. dxe4 {[%clk 0:02:51]}  Qxd1+ {[%clk 0:02:56]} 5. Kxd1 {[%clk 0:02:52]}  Nf6 {[%clk 0:02:55]} 6. f3 {[%clk 0:02:44]}  b6 {[%clk 0:02:52]} 7. Bg2 {[%clk 0:02:42]}  Bb7 {[%clk 0:02:52]} 8. c3 {[%clk 0:02:43]}  Nbd7 {[%clk 0:02:51]} 9. Be3 {[%clk 0:02:43]}  O-O-O {[%clk 0:02:51]} 10. Nd2 {[%clk 0:02:43]}  Bc5 {[%clk 0:02:49]} 11. Bxc5 {[%clk 0:02:31]}  Nxc5 {[%clk 0:02:49]} 12. Kc2 {[%clk 0:02:31]}  Ba6 {[%clk 0:02:48]} 13. Bf1 {[%clk 0:02:28]}  Bxf1 {[%clk 0:02:45]} 14. Rxf1 {[%clk 0:02:29]}  h5 {[%clk 0:02:44]} 15. h4 {[%clk 0:02:26]}  a5 {[%clk 0:02:39]} 16. Nh3 {[%clk 0:02:25]}  Rd7 {[%clk 0:02:33]} 17. Nc4 {[%clk 0:02:16]}  Ne8 {[%clk 0:02:07]} 18. Ne5 {[%clk 0:02:08]}  Re7 {[%clk 0:02:05]} 19. Rd1 {[%clk 0:01:49]}  Nd6 {[%clk 0:01:59]} 20. Rd2 {[%clk 0:01:34]}  Kb7 {[%clk 0:01:50]} 21. b3 {[%clk 0:01:30]}  Ra8 {[%clk 0:01:46]} 22. a4 {[%clk 0:01:28]}  f6 {[%clk 0:01:44]} 23. Ng6 {[%clk 0:01:25]}  Ree8 {[%clk 0:01:43]} 24. Rhd1 {[%clk 0:01:25]}  e5 {[%clk 0:01:41]} 25. Nf2 {[%clk 0:01:03]}  Kc6 {[%clk 0:01:40]} 26. Nd3 {[%clk 0:00:59]}  Ne6 {[%clk 0:01:26]} 27. Nb2 {[%clk 0:00:52]}  Rab8 {[%clk 0:01:13]} 28. Rd5 {[%clk 0:00:39]}  Nc5 {[%clk 0:01:03]} 29. Nd3 {[%clk 0:00:18]}  Ne6 {[%clk 0:00:55]} 30. Nb2 {[%clk 0:00:17]}  Nc5 {[%clk 0:00:50]} 31. R5d2 {[%clk 0:00:17]}  b5 {[%clk 0:00:49]} 32. axb5+ {[%clk 0:00:16]}  Nxb5 {[%clk 0:00:47]} 33. Nc4 {[%clk 0:00:06]}  a4 {[%clk 0:00:40]} 34. b4 {[%clk 0:00:05]}  Nb3 {[%clk 0:00:39]} 35. Rd5 {[%clk 0:00:06]}  Re6 {[%clk 0:00:30]} 36. Na5+ {[%clk 0:00:04]}  Nxa5 {[%clk 0:00:29]} 37. bxa5 {[%clk 0:00:05]}  Na3+ {[%clk 0:00:28]} 38. Kd3 {[%clk 0:00:05]}  Rd6 {[%clk 0:00:21]} 39. Ra1 {[%clk 0:00:05]}  Nb5 {[%clk 0:00:18]} 40. Rxa4 {[%clk 0:00:04]}  Na7 {[%clk 0:00:16]} 41. c4 {[%clk 0:00:03]}  Rb3+ {[%clk 0:00:15]} 42. Kc2 {[%clk 0:00:03]}  Rxf3 {[%clk 0:00:15]} 43. Ne7+ {[%clk 0:00:04]}  Kb7 {[%clk 0:00:15]} 44. c5 {[%clk 0:00:03]}  Rxd5 {[%clk 0:00:14]} 45. exd5 {[%clk 0:00:04]}  Nb5 {[%clk 0:00:14]} 46. c6+ {[%clk 0:00:04]}  Ka6 {[%clk 0:00:14]} 47. Ng6 {[%clk 0:00:02]}  Nd6 {[%clk 0:00:14]} 48. Rb4 {[%clk 0:00:01]}  Kxa5 {[%clk 0:00:14]} 49. Rb8 {[%clk 0:00:02]}  Rxg3 {[%clk 0:00:11]} 50. Ne7 {[%clk 0:00:01]}  Rg4 {[%clk 0:00:10]} 51. Kc3 {[%clk 0:00:01]}  Rc4+ {[%clk 0:00:09]} 52. Kd3 {[%clk 0:00:02]}  e4+ {[%clk 0:00:09]} 53. Ke3 {[%clk 0:00:02]}  f5 {[%clk 0:00:10]} 54. Kf4 {[%clk 0:00:02]}  Rc3 {[%clk 0:00:09]} 55. Nxf5 {[%clk 0:00:03]}  Rf3+ {[%clk 0:00:09]} 56. Kg5 {[%clk 0:00:03]}  Rxf5+ {[%clk 0:00:09]} 57. Kg6 {[%clk 0:00:04]}  Rxd5 {[%clk 0:00:09]} 58. Kxg7 {[%clk 0:00:04]}  Rc5 {[%clk 0:00:10]} 59. Ra8+ {[%clk 0:00:04]}  Kb6 {[%clk 0:00:09]} 60. Kf6 {[%clk 0:00:05]}  Kxc6 {[%clk 0:00:10]} 61. Ra2 {[%clk 0:00:04]}  e3 {[%clk 0:00:10]} 62. Re2 {[%clk 0:00:03]}  Rc3 {[%clk 0:00:10]} 63. Ke5 {[%clk 0:00:04]}  Nc4+ {[%clk 0:00:10]} 64. Ke4 {[%clk 0:00:05]}  Kc5 {[%clk 0:00:10]} 65. Re1 {[%clk 0:00:03]}  Kb4 {[%clk 0:00:08]} 66. Kd4 {[%clk 0:00:04]}  Nd2 {[%clk 0:00:08]} 67. Rxe3 {[%clk 0:00:02]}  Nb3+ {[%clk 0:00:08]} 68. Ke4 {[%clk 0:00:01]}  Nc5+ {[%clk 0:00:08]} 69. Kd4 {[%clk 0:00:01]}  Rxe3 {[%clk 0:00:08]} 70. Kxe3 {[%clk 0:00:02]}  Nd7 {[%clk 0:00:08]} 71. Kf4 {[%clk 0:00:03]}  c5 {[%clk 0:00:09]} 72. Kg5 {[%clk 0:00:04]}  c4 {[%clk 0:00:09]} 73. Kxh5 {[%clk 0:00:05]}  c3 {[%clk 0:00:10]} 74. Kg6 {[%clk 0:00:06]}  c2 {[%clk 0:00:11]} 75. h5 {[%clk 0:00:07]}  c1=Q {[%clk 0:00:11]} 76. h6 {[%clk 0:00:08]}  Qc3 {[%clk 0:00:11]} 77. h7 {[%clk 0:00:09]}  Qh8 {[%clk 0:00:11]} 78. Kh6 {[%clk 0:00:09]}  Nf8 {[%clk 0:00:11]} 79. Kg5 {[%clk 0:00:09]}  Qxh7 {[%clk 0:00:12]} 0-1


[Site "https://www.chess.com"]

[Event "Titled Tuesday Blitz February 07 Early 2023"]
[White "Lucassen, Mickey"]
[Black "Zaksaite, Salomeja"]
[WhiteFideId "12919110"]
[BlackFideId "12801496"]
[WhiteElo "2023"]
[BlackElo "2283"]
[Result "1-0"]
[Round "11"]
[TimeControl "180+2"]
[Date "2023.02.07"]
[WhiteClock "0:00:58"]
[BlackClock "0:00:01"]

1. Nf3 {[%clk 0:03:00]}  Nf6 {[%clk 0:02:57]} 2. d4 {[%clk 0:03:01]}  g6 {[%clk 0:02:55]} 3. Nc3 {[%clk 0:03:01]}  Bg7 {[%clk 0:02:56]} 4. e4 {[%clk 0:03:00]}  d6 {[%clk 0:02:55]} 5. h3 {[%clk 0:02:51]}  O-O {[%clk 0:02:54]} 6. Bc4 {[%clk 0:02:51]}  c6 {[%clk 0:02:52]} 7. Bb3 {[%clk 0:02:49]}  Nbd7 {[%clk 0:02:52]} 8. O-O {[%clk 0:02:49]}  e5 {[%clk 0:02:52]} 9. dxe5 {[%clk 0:02:46]}  dxe5 {[%clk 0:02:52]} 10. Qe2 {[%clk 0:02:45]}  Qc7 {[%clk 0:02:52]} 11. Rd1 {[%clk 0:02:45]}  Nc5 {[%clk 0:02:49]} 12. Bg5 {[%clk 0:02:39]}  Nxb3 {[%clk 0:02:47]} 13. axb3 {[%clk 0:02:38]}  Be6 {[%clk 0:02:44]} 14. Bh4 {[%clk 0:02:36]}  Nh5 {[%clk 0:02:29]} 15. Nd2 {[%clk 0:02:24]}  Nf4 {[%clk 0:02:28]} 16. Qe3 {[%clk 0:02:24]}  Bh6 {[%clk 0:02:26]} 17. Qf3 {[%clk 0:02:21]}  f6 {[%clk 0:02:16]} 18. Nc4 {[%clk 0:02:11]}  b6 {[%clk 0:01:27]} 19. Ne2 {[%clk 0:02:01]}  g5 {[%clk 0:00:26]} 20. Bg3 {[%clk 0:01:58]}  Rfd8 {[%clk 0:00:26]} 21. Ne3 {[%clk 0:01:51]}  Rxd1+ {[%clk 0:00:21]} 22. Rxd1 {[%clk 0:01:50]}  Rd8 {[%clk 0:00:21]} 23. Rxd8+ {[%clk 0:01:44]}  Qxd8 {[%clk 0:00:22]} 24. Kh2 {[%clk 0:01:35]}  Qd2 {[%clk 0:00:15]} 25. Bxf4 {[%clk 0:01:22]}  exf4 {[%clk 0:00:10]} 26. Ng4 {[%clk 0:01:20]}  Bg7 {[%clk 0:00:08]} 27. g3 {[%clk 0:01:10]}  h5 {[%clk 0:00:06]} 28. gxf4 {[%clk 0:01:05]}  hxg4 {[%clk 0:00:06]} 29. hxg4 {[%clk 0:01:06]}  Qxc2 {[%clk 0:00:06]} 30. Nd4 {[%clk 0:01:02]}  Qxb2 {[%clk 0:00:03]} 31. Nxe6 {[%clk 0:01:02]}  gxf4 {[%clk 0:00:03]} 32. Nxf4 {[%clk 0:00:58]}  Qe5 {[%clk 0:00:03]} 33. Kg2 {[%clk 0:00:58]}  b5 {[%clk 0:00:03]} 34. Nh5 {[%clk 0:00:58]}  Qg5 {[%clk 0:00:02]} 35. Ng3 {[%clk 0:00:57]}  Qe5 {[%clk 0:00:02]} 36. Nf5 {[%clk 0:00:57]}  c5 {[%clk 0:00:01]} 37. Qd3 {[%clk 0:00:58]} 1-0


[Site "https://www.chess.com"]

[Event "Titled Tuesday Blitz February 07 Early 2023"]
[White "Ciuffoletti, Paolo"]
[Black "Buscar, Michael"]
[WhiteFideId "807630"]
[BlackFideId "2603616"]
[WhiteElo "2106"]
[BlackElo "2041"]
[Result "0-1"]
[Round "11"]
[TimeControl "180+2"]
[Date "2023.02.07"]
[WhiteClock "0:00:01"]
[BlackClock "0:00:21"]

1. e4 {[%clk 0:03:00]}  c5 {[%clk 0:02:48]} 2. d4 {[%clk 0:02:59]}  cxd4 {[%clk 0:02:48]} 3. c3 {[%clk 0:03:00]}  Nf6 {[%clk 0:02:48]} 4. e5 {[%clk 0:02:59]}  Nd5 {[%clk 0:02:48]} 5. Qxd4 {[%clk 0:03:00]}  Nc7 {[%clk 0:02:44]} 6. Nf3 {[%clk 0:02:56]}  Nc6 {[%clk 0:02:44]} 7. Qe4 {[%clk 0:02:55]}  Ne6 {[%clk 0:02:40]} 8. Bc4 {[%clk 0:02:47]}  d5 {[%clk 0:02:36]} 9. Bxd5 {[%clk 0:02:40]}  g6 {[%clk 0:02:33]} 10. O-O {[%clk 0:02:16]}  Qc7 {[%clk 0:02:32]} 11. a4 {[%clk 0:01:57]}  Bg7 {[%clk 0:02:28]} 12. Re1 {[%clk 0:01:56]}  O-O {[%clk 0:02:27]} 13. Na3 {[%clk 0:01:55]}  a6 {[%clk 0:02:25]} 14. Nc4 {[%clk 0:01:53]}  Bd7 {[%clk 0:02:24]} 15. a5 {[%clk 0:01:52]}  Nc5 {[%clk 0:02:17]} 16. Qc2 {[%clk 0:01:38]}  Be6 {[%clk 0:02:09]} 17. Bxe6 {[%clk 0:01:28]}  Nxe6 {[%clk 0:02:09]} 18. Be3 {[%clk 0:01:20]}  Rac8 {[%clk 0:02:09]} 19. Rad1 {[%clk 0:01:15]}  Nxa5 {[%clk 0:02:06]} 20. Nb6 {[%clk 0:01:13]}  Rcd8 {[%clk 0:02:00]} 21. Nd5 {[%clk 0:01:04]}  Rxd5 {[%clk 0:01:52]} 22. Rxd5 {[%clk 0:01:03]}  Nc4 {[%clk 0:01:52]} 23. Bd4 {[%clk 0:00:54]}  Qc6 {[%clk 0:01:49]} 24. Qe4 {[%clk 0:00:43]}  Nxb2 {[%clk 0:01:40]} 25. Ra5 {[%clk 0:00:41]}  Qxe4 {[%clk 0:01:26]} 26. Rxe4 {[%clk 0:00:39]}  Rc8 {[%clk 0:01:27]} 27. Ra2 {[%clk 0:00:27]}  Nd3 {[%clk 0:01:15]} 28. Rd2 {[%clk 0:00:23]}  Nxd4 {[%clk 0:01:06]} 29. Rxd3 {[%clk 0:00:17]}  Nxf3+ {[%clk 0:00:59]} 30. Rxf3 {[%clk 0:00:17]}  Rc5 {[%clk 0:00:53]} 31. Rd3 {[%clk 0:00:14]}  Bxe5 {[%clk 0:00:52]} 32. Rd7 {[%clk 0:00:10]}  Rxc3 {[%clk 0:00:52]} 33. f4 {[%clk 0:00:09]}  Bd6 {[%clk 0:00:50]} 34. Rxb7 {[%clk 0:00:08]}  Bc5+ {[%clk 0:00:43]} 35. Kf1 {[%clk 0:00:08]}  Rc1+ {[%clk 0:00:43]} 36. Re1 {[%clk 0:00:07]}  Rc2 {[%clk 0:00:37]} 37. Re2 {[%clk 0:00:04]}  Rc1+ {[%clk 0:00:32]} 38. Re1 {[%clk 0:00:04]}  Rc4 {[%clk 0:00:32]} 39. g3 {[%clk 0:00:04]}  Bb4 {[%clk 0:00:24]} 40. Rd1 {[%clk 0:00:04]}  a5 {[%clk 0:00:23]} 41. Kg2 {[%clk 0:00:02]}  h5 {[%clk 0:00:22]} 42. Ra7 {[%clk 0:00:01]}  h4 {[%clk 0:00:21]} 0-1


[Site "https://www.chess.com"]

[Event "Titled Tuesday Blitz February 07 Early 2023"]
[White "Matveeva, Olga"]
[Black "Barwinska, Ewa"]
[WhiteFideId "24107018"]
[BlackFideId "21833761"]
[WhiteElo "2128"]
[BlackElo "1914"]
[Result "0-1"]
[Round "11"]
[TimeControl "180+2"]
[Date "2023.02.07"]
[WhiteClock "0:00:05"]
[BlackClock "0:00:03"]

1. d4 {[%clk 0:03:00]}  f5 {[%clk 0:02:55]} 2. Nc3 {[%clk 0:03:00]}  d5 {[%clk 0:02:53]} 3. f3 {[%clk 0:02:55]}  e6 {[%clk 0:02:49]} 4. h4 {[%clk 0:02:46]}  Nf6 {[%clk 0:02:48]} 5. Bg5 {[%clk 0:02:44]}  Be7 {[%clk 0:02:44]} 6. Qd2 {[%clk 0:02:43]}  h6 {[%clk 0:02:43]} 7. Bxf6 {[%clk 0:02:43]}  Bxf6 {[%clk 0:02:43]} 8. O-O-O {[%clk 0:02:42]}  Nc6 {[%clk 0:02:37]} 9. e3 {[%clk 0:02:30]}  Bd7 {[%clk 0:02:24]} 10. g4 {[%clk 0:02:21]}  fxg4 {[%clk 0:02:15]} 11. fxg4 {[%clk 0:02:22]}  Bxh4 {[%clk 0:02:15]} 12. Nf3 {[%clk 0:02:20]}  Bf6 {[%clk 0:02:11]} 13. e4 {[%clk 0:02:12]}  dxe4 {[%clk 0:02:02]} 14. Nxe4 {[%clk 0:02:11]}  Qe7 {[%clk 0:02:02]} 15. g5 {[%clk 0:02:06]}  O-O-O {[%clk 0:01:52]} 16. gxf6 {[%clk 0:02:06]}  gxf6 {[%clk 0:01:53]} 17. Bc4 {[%clk 0:01:58]}  e5 {[%clk 0:01:48]} 18. dxe5 {[%clk 0:01:51]}  Bg4 {[%clk 0:01:19]} 19. Qe3 {[%clk 0:01:46]}  Rxd1+ {[%clk 0:00:55]} 20. Rxd1 {[%clk 0:01:35]}  Nxe5 {[%clk 0:00:53]} 21. Ned2 {[%clk 0:01:20]}  Qb4 {[%clk 0:00:34]} 22. Nxe5 {[%clk 0:00:58]}  Bxd1 {[%clk 0:00:33]} 23. Qh3+ {[%clk 0:00:46]}  Kb8 {[%clk 0:00:27]} 24. Nd7+ {[%clk 0:00:46]}  Ka8 {[%clk 0:00:27]} 25. Kxd1 {[%clk 0:00:44]}  Qxb2 {[%clk 0:00:20]} 26. Qe6 {[%clk 0:00:32]}  Rd8 {[%clk 0:00:16]} 27. Bd3 {[%clk 0:00:25]}  Qd4 {[%clk 0:00:11]} 28. Nxf6 {[%clk 0:00:18]}  Rf8 {[%clk 0:00:08]} 29. Nde4 {[%clk 0:00:16]}  Qg1+ {[%clk 0:00:08]} 30. Kd2 {[%clk 0:00:16]}  Qg2+ {[%clk 0:00:08]} 31. Kc3 {[%clk 0:00:16]}  Qg7 {[%clk 0:00:06]} 32. Kb3 {[%clk 0:00:15]}  a6 {[%clk 0:00:06]} 33. a4 {[%clk 0:00:13]}  c6 {[%clk 0:00:05]} 34. Ka2 {[%clk 0:00:12]}  Qc7 {[%clk 0:00:06]} 35. Ne8 {[%clk 0:00:11]}  Qh7 {[%clk 0:00:04]} 36. N8d6 {[%clk 0:00:11]}  Qc7 {[%clk 0:00:04]} 37. Ne8 {[%clk 0:00:10]}  Qh7 {[%clk 0:00:04]} 38. Qc8+ {[%clk 0:00:10]}  Ka7 {[%clk 0:00:04]} 39. Nc5 {[%clk 0:00:10]}  Qf7+ {[%clk 0:00:04]} 40. Ka3 {[%clk 0:00:09]}  Qe7 {[%clk 0:00:03]} 41. Kb4 {[%clk 0:00:05]}  Rxe8 {[%clk 0:00:03]} 0-1


[Site "https://www.chess.com"]

[Event "Titled Tuesday Blitz February 07 Early 2023"]
[White "Zampronha, Wladimir Camilo"]
[Black "Fathy, Elameir"]
[WhiteFideId "2103087"]
[BlackFideId "10600396"]
[WhiteElo "2176"]
[BlackElo "2300"]
[Result "0-1"]
[Round "11"]
[TimeControl "180+2"]
[Date "2023.02.07"]
[WhiteClock "0:00:03"]
[BlackClock "0:00:07"]

1. e4 {[%clk 0:03:00]}  c6 {[%clk 0:02:59]} 2. d4 {[%clk 0:03:00]}  d5 {[%clk 0:03:00]} 3. e5 {[%clk 0:03:00]}  Bf5 {[%clk 0:03:00]} 4. Nf3 {[%clk 0:03:00]}  e6 {[%clk 0:03:00]} 5. Be2 {[%clk 0:03:01]}  Nd7 {[%clk 0:02:57]} 6. O-O {[%clk 0:03:00]}  a5 {[%clk 0:02:58]} 7. Nbd2 {[%clk 0:02:53]}  a4 {[%clk 0:02:56]} 8. c4 {[%clk 0:02:53]}  a3 {[%clk 0:02:50]} 9. cxd5 {[%clk 0:02:41]}  cxd5 {[%clk 0:02:48]} 10. bxa3 {[%clk 0:02:37]}  Bxa3 {[%clk 0:02:40]} 11. Qb3 {[%clk 0:02:34]}  Bxc1 {[%clk 0:02:22]} 12. Rfxc1 {[%clk 0:02:33]}  b6 {[%clk 0:02:22]} 13. Bb5 {[%clk 0:02:20]}  Rb8 {[%clk 0:02:20]} 14. Qa4 {[%clk 0:02:13]}  Ne7 {[%clk 0:02:15]} 15. Nh4 {[%clk 0:02:08]}  Bg6 {[%clk 0:02:05]} 16. Rc3 {[%clk 0:01:59]}  Nf5 {[%clk 0:01:51]} 17. Nxf5 {[%clk 0:01:55]}  Bxf5 {[%clk 0:01:51]} 18. Rac1 {[%clk 0:01:54]}  O-O {[%clk 0:01:38]} 19. Bxd7 {[%clk 0:01:53]}  Ra8 {[%clk 0:01:39]} 20. Qc6 {[%clk 0:01:42]}  Rxa2 {[%clk 0:01:39]} 21. Nf1 {[%clk 0:01:26]}  h5 {[%clk 0:01:28]} 22. Bc8 {[%clk 0:01:13]}  Qg5 {[%clk 0:01:24]} 23. Qxb6 {[%clk 0:01:01]}  h4 {[%clk 0:01:23]} 24. Qb3 {[%clk 0:00:50]}  Re2 {[%clk 0:01:23]} 25. Rf3 {[%clk 0:00:42]}  Be4 {[%clk 0:01:16]} 26. Ba6 {[%clk 0:00:37]}  Bxf3 {[%clk 0:01:01]} 27. Qxf3 {[%clk 0:00:38]}  Ra2 {[%clk 0:00:58]} 28. Rc6 {[%clk 0:00:31]}  Ra1 {[%clk 0:00:54]} 29. h3 {[%clk 0:00:30]}  Ra8 {[%clk 0:00:51]} 30. Be2 {[%clk 0:00:28]}  Rc1 {[%clk 0:00:32]} 31. Rxc1 {[%clk 0:00:27]}  Qxc1 {[%clk 0:00:33]} 32. Kh2 {[%clk 0:00:21]}  Qb2 {[%clk 0:00:26]} 33. Ne3 {[%clk 0:00:13]}  Qxd4 {[%clk 0:00:22]} 34. Ng4 {[%clk 0:00:11]}  Ra2 {[%clk 0:00:20]} 35. Bd3 {[%clk 0:00:09]}  Rd2 {[%clk 0:00:15]} 36. Bb1 {[%clk 0:00:09]}  Rd1 {[%clk 0:00:09]} 37. Bc2 {[%clk 0:00:09]}  Rc1 {[%clk 0:00:08]} 38. Bb3 {[%clk 0:00:06]}  Qa1 {[%clk 0:00:06]} 39. g3 {[%clk 0:00:05]}  hxg3+ {[%clk 0:00:07]} 40. Kxg3 {[%clk 0:00:05]}  Rc3 {[%clk 0:00:07]} 41. Nf6+ {[%clk 0:00:03]}  gxf6 {[%clk 0:00:07]} 0-1


[Site "https://www.chess.com"]